[Event "Late-Titled-Tuesday-Blitz-January-30-2024"]
[Site "Chess.com"]
[Date "2024.01.30"]
[Round "8"]
[White "Mikhail_Golubev"]
[Black "KamlaPasand"]
[Result "1-0"]
[WhiteElo "2659"]
[BlackElo "2486"]
[TimeControl "180+1"]
[EndTime "15:24:29 PST"]
[Termination "Mikhail_Golubev won by checkmate"]

1. e4 {[%clk 0:03:00.9]} 1... e5 {[%clk 0:02:52]} 2. Nf3 {[%clk 0:03:00.1]} 2...
Nc6 {[%clk 0:02:52.2]} 3. Bc4 {[%clk 0:02:59.9]} 3... Bc5 {[%clk 0:02:51.5]} 4.
c3 {[%clk 0:02:59.6]} 4... Nf6 {[%clk 0:02:51]} 5. d4 {[%clk 0:03:00.2]} 5...
exd4 {[%clk 0:02:51.4]} 6. cxd4 {[%clk 0:03:01.1]} 6... Bb4+ {[%clk 0:02:52]} 7.
Nbd2 {[%clk 0:03:01.6]} 7... d5 {[%clk 0:02:51.1]} 8. exd5 {[%clk 0:03:01.3]}
8... Nxd5 {[%clk 0:02:52]} 9. O-O {[%clk 0:03:01.2]} 9... O-O {[%clk 0:02:50.8]}
10. a3 {[%clk 0:03:01.1]} 10... Ba5 {[%clk 0:02:46.7]} 11. Ba2 {[%clk
0:02:36.7]} 11... Bg4 {[%clk 0:02:44.8]} 12. h3 {[%clk 0:02:24.7]} 12... Bh5
{[%clk 0:02:44]} 13. Nc4 {[%clk 0:02:11.3]} 13... Bb6 {[%clk 0:02:40]} 14. g4
{[%clk 0:01:46.6]} 14... Bg6 {[%clk 0:02:37.4]} 15. Re1 {[%clk 0:01:44.7]} 15...
Qd7 {[%clk 0:02:24]} 16. Nfe5 {[%clk 0:01:16.4]} 16... Nxe5 {[%clk 0:02:22.2]}
17. dxe5 {[%clk 0:01:17]} 17... Rad8 {[%clk 0:02:15.3]} 18. Bg5 {[%clk 0:01:09]}
18... f6 {[%clk 0:02:14.7]} 19. exf6 {[%clk 0:01:05.4]} 19... gxf6 {[%clk
0:02:14.6]} 20. Bh6 {[%clk 0:01:02.9]} 20... Rf7 {[%clk 0:02:13.7]} 21. Nxb6
{[%clk 0:01:01]} 21... Nxb6 {[%clk 0:02:01.8]} 22. Qxd7 {[%clk 0:00:53.4]} 22...
Rxd7 {[%clk 0:02:00]} 23. Re8# {[%clk 0:00:51.1]} 1-0

[Event "Late-Titled-Tuesday-Blitz-January-30-2024"]
[Site "Chess.com"]
[Date "2024.01.30"]
[Round "8"]
[White "neri_gaite"]
[Black "Bala-Afiada"]
[Result "1-0"]
[WhiteElo "2029"]
[BlackElo "2017"]
[TimeControl "180+1"]
[EndTime "15:24:39 PST"]
[Termination "neri_gaite won by resignation"]

1. d4 {[%clk 0:02:53.8]} 1... d5 {[%clk 0:02:59.9]} 2. c4 {[%clk 0:02:53.3]}
2... e6 {[%clk 0:03:00.3]} 3. Nc3 {[%clk 0:02:53.2]} 3... Nf6 {[%clk 0:03:00.4]}
4. Bg5 {[%clk 0:02:53.7]} 4... c6 {[%clk 0:02:59.3]} 5. e3 {[%clk 0:02:53.3]}
5... Be7 {[%clk 0:02:59.6]} 6. Nf3 {[%clk 0:02:53.2]} 6... O-O {[%clk
0:02:59.2]} 7. Rc1 {[%clk 0:02:51.9]} 7... Nbd7 {[%clk 0:02:58.6]} 8. Bd3 {[%clk
0:02:51.8]} 8... dxc4 {[%clk 0:02:58.7]} 9. Bxc4 {[%clk 0:02:52.7]} 9... b5
{[%clk 0:02:59.4]} 10. Bd3 {[%clk 0:02:52.7]} 10... Bb7 {[%clk 0:03:00.1]} 11.
Bxf6 {[%clk 0:02:48.6]} 11... Bxf6 {[%clk 0:02:51.9]} 12. O-O {[%clk 0:02:40.2]}
12... e5 {[%clk 0:02:41.1]} 13. dxe5 {[%clk 0:02:34.6]} 13... Nxe5 {[%clk
0:02:42]} 14. Nxe5 {[%clk 0:02:28.3]} 14... Bxe5 {[%clk 0:02:41.9]} 15. Be4
{[%clk 0:02:28.9]} 15... Qb6 {[%clk 0:02:30.9]} 16. Qh5 {[%clk 0:02:00.3]} 16...
f5 {[%clk 0:01:44.3]} 17. Bxf5 {[%clk 0:01:57.4]} 17... Bxh2+ {[%clk 0:01:18.3]}
18. Kxh2 {[%clk 0:01:43.9]} 18... g6 {[%clk 0:01:15.7]} 19. Bxg6 {[%clk
0:01:38.6]} 19... hxg6 {[%clk 0:01:16.6]} 20. Qxg6+ {[%clk 0:01:39.1]} 20... Kh8
{[%clk 0:01:14.6]} 21. Rh1 {[%clk 0:01:38.5]} 1-0

[Event "Late-Titled-Tuesday-Blitz-January-30-2024"]
[Site "Chess.com"]
[Date "2024.01.30"]
[Round "8"]
[White "Kleyton_Lima"]
[Black "TanitoluwaAps116"]
[Result "0-1"]
[WhiteElo "2594"]
[BlackElo "2726"]
[TimeControl "180+1"]
[EndTime "15:24:41 PST"]
[Termination "TanitoluwaAps116 won by resignation"]

1. e4 {[%clk 0:02:46.8]} 1... c5 {[%clk 0:02:43.3]} 2. Nf3 {[%clk 0:02:46]} 2...
e6 {[%clk 0:02:41.8]} 3. d4 {[%clk 0:02:46.6]} 3... cxd4 {[%clk 0:02:42.7]} 4.
Nxd4 {[%clk 0:02:47.5]} 4... Nf6 {[%clk 0:02:43.4]} 5. Nc3 {[%clk 0:02:47.6]}
5... Nc6 {[%clk 0:02:44.1]} 6. Nxc6 {[%clk 0:02:47.5]} 6... bxc6 {[%clk
0:02:43]} 7. e5 {[%clk 0:02:45.6]} 7... Nd5 {[%clk 0:02:41.9]} 8. Ne4 {[%clk
0:02:46.2]} 8... Qc7 {[%clk 0:02:40.8]} 9. f4 {[%clk 0:02:45.1]} 9... Rb8 {[%clk
0:02:39.4]} 10. c4 {[%clk 0:02:42.7]} 10... Bb4+ {[%clk 0:02:38]} 11. Ke2 {[%clk
0:02:43.5]} 11... O-O {[%clk 0:02:31.2]} 12. a3 {[%clk 0:02:42]} 12... Be7
{[%clk 0:02:26.2]} 13. cxd5 {[%clk 0:02:42]} 13... cxd5 {[%clk 0:02:21.9]} 14.
Nd6 {[%clk 0:02:42.4]} 14... f6 {[%clk 0:02:21]} 15. Nxc8 {[%clk 0:02:40.6]}
15... Rfxc8 {[%clk 0:02:20]} 16. exf6 {[%clk 0:02:41.5]} 16... Bxf6 {[%clk
0:02:19.3]} 17. Rb1 {[%clk 0:02:41.8]} 17... Qc4+ {[%clk 0:01:21.6]} 18. Qd3
{[%clk 0:02:26.8]} 18... Qa2 {[%clk 0:01:02.2]} 19. Kf2 {[%clk 0:02:09.2]} 19...
Rb3 {[%clk 0:00:56.4]} 20. Qa6 {[%clk 0:01:52]} 20... Rc2+ {[%clk 0:00:48.4]}
21. Kg1 {[%clk 0:01:46]} 21... Bd4+ {[%clk 0:00:48.1]} 0-1

[Event "Late-Titled-Tuesday-Blitz-January-30-2024"]
[Site "Chess.com"]
[Date "2024.01.30"]
[Round "8"]
[White "jsdbv18"]
[Black "N_Mullodzhanov"]
[Result "1-0"]
[WhiteElo "2614"]
[BlackElo "2453"]
[TimeControl "180+1"]
[EndTime "15:25:09 PST"]
[Termination "jsdbv18 won by checkmate"]

1. e4 {[%clk 0:02:57.6]} 1... c6 {[%clk 0:02:59.4]} 2. Nf3 {[%clk 0:02:57.4]}
2... d5 {[%clk 0:02:59.8]} 3. Nc3 {[%clk 0:02:58.2]} 3... dxe4 {[%clk
0:02:57.4]} 4. Nxe4 {[%clk 0:02:59.1]} 4... Nf6 {[%clk 0:02:57.7]} 5. Qe2 {[%clk
0:02:58.9]} 5... Nxe4 {[%clk 0:02:55.7]} 6. Qxe4 {[%clk 0:02:59.8]} 6... Nd7
{[%clk 0:02:56.1]} 7. Bc4 {[%clk 0:02:59.1]} 7... Nf6 {[%clk 0:02:55.1]} 8. Ne5
{[%clk 0:02:59.5]} 8... e6 {[%clk 0:02:55.5]} 9. Qe2 {[%clk 0:02:59.9]} 9... Bd6
{[%clk 0:02:54.3]} 10. d4 {[%clk 0:02:58.6]} 10... O-O {[%clk 0:02:53.1]} 11.
O-O {[%clk 0:02:58.9]} 11... Qc7 {[%clk 0:02:47]} 12. c3 {[%clk 0:02:58.6]}
12... c5 {[%clk 0:02:44]} 13. Bg5 {[%clk 0:02:56.7]} 13... Nd7 {[%clk
0:02:43.4]} 14. f4 {[%clk 0:02:38.7]} 14... cxd4 {[%clk 0:02:40.8]} 15. cxd4
{[%clk 0:02:38.6]} 15... Nb6 {[%clk 0:02:38.2]} 16. Bd3 {[%clk 0:02:34.9]} 16...
f6 {[%clk 0:02:36.1]} 17. Rac1 {[%clk 0:02:02.5]} 17... Qd8 {[%clk 0:01:47.4]}
18. Qh5 {[%clk 0:01:52.4]} 18... h6 {[%clk 0:01:36.9]} 19. Qg6 {[%clk
0:01:29.9]} 19... Bxe5 {[%clk 0:01:22.8]} 20. Qh7+ {[%clk 0:01:06.7]} 20... Kf7
{[%clk 0:01:21.1]} 21. Bg6+ {[%clk 0:01:07.4]} 21... Ke7 {[%clk 0:01:20.5]} 22.
Qxg7+ {[%clk 0:01:08.1]} 22... Kd6 {[%clk 0:01:18.2]} 23. dxe5+ {[%clk
0:01:06.3]} 23... fxe5 {[%clk 0:01:14.7]} 24. Bxd8 {[%clk 0:01:05.7]} 24... Rxd8
{[%clk 0:01:10]} 25. fxe5+ {[%clk 0:01:04.4]} 25... Kd5 {[%clk 0:01:09.3]} 26.
Rfd1# {[%clk 0:01:04.4]} 1-0

[Event "Late-Titled-Tuesday-Blitz-January-30-2024"]
[Site "Chess.com"]
[Date "2024.01.30"]
[Round "8"]
[White "Korchmar_Vasiliy"]
[Black "valeriocarnicelli"]
[Result "1-0"]
[WhiteElo "2722"]
[BlackElo "2536"]
[TimeControl "180+1"]
[EndTime "15:25:17 PST"]
[Termination "Korchmar_Vasiliy won by checkmate"]

1. e4 {[%clk 0:02:56.4]} 1... e6 {[%clk 0:02:14.2]} 2. d4 {[%clk 0:02:56.2]}
2... d5 {[%clk 0:02:14]} 3. e5 {[%clk 0:02:56.9]} 3... c5 {[%clk 0:02:14.1]} 4.
c3 {[%clk 0:02:57.6]} 4... Nc6 {[%clk 0:02:13.4]} 5. Nf3 {[%clk 0:02:58.2]} 5...
Qb6 {[%clk 0:02:13.2]} 6. Be2 {[%clk 0:02:57.9]} 6... cxd4 {[%clk 0:02:06.6]} 7.
cxd4 {[%clk 0:02:58.8]} 7... Nh6 {[%clk 0:02:07.1]} 8. Bxh6 {[%clk 0:02:57.9]}
8... Qxb2 {[%clk 0:02:05.5]} 9. Nbd2 {[%clk 0:02:57.6]} 9... gxh6 {[%clk
0:02:04.9]} 10. O-O {[%clk 0:02:57.2]} 10... Bd7 {[%clk 0:01:57.9]} 11. Rb1
{[%clk 0:02:57.1]} 11... Qxa2 {[%clk 0:01:57]} 12. Rxb7 {[%clk 0:02:56.9]} 12...
Rb8 {[%clk 0:01:54.9]} 13. Rxb8+ {[%clk 0:02:30.3]} 13... Nxb8 {[%clk
0:01:55.8]} 14. Qc1 {[%clk 0:02:30.8]} 14... Be7 {[%clk 0:01:45.6]} 15. Re1
{[%clk 0:02:24]} 15... O-O {[%clk 0:01:38.1]} 16. Nf1 {[%clk 0:02:23.6]} 16...
Rc8 {[%clk 0:01:05.4]} 17. Qxh6 {[%clk 0:02:23.2]} 17... Qc2 {[%clk 0:01:05.8]}
18. Ne3 {[%clk 0:02:06.6]} 18... Qg6 {[%clk 0:01:05.5]} 19. Qf4 {[%clk
0:02:03.5]} 19... a5 {[%clk 0:00:59.4]} 20. Ng4 {[%clk 0:02:03.9]} 20... a4
{[%clk 0:00:53]} 21. Nf6+ {[%clk 0:02:04.5]} 21... Bxf6 {[%clk 0:00:48.9]} 22.
exf6 {[%clk 0:02:05.4]} 22... Nc6 {[%clk 0:00:29.8]} 23. Bb5 {[%clk 0:02:05.7]}
23... a3 {[%clk 0:00:27.9]} 24. Bxc6 {[%clk 0:02:05.7]} 24... Bxc6 {[%clk
0:00:21.8]} 25. Ne5 {[%clk 0:02:06]} 25... Qh5 {[%clk 0:00:05.3]} 26. Qg3+
{[%clk 0:02:06.2]} 26... Kf8 {[%clk 0:00:05.5]} 27. Qg7+ {[%clk 0:02:05.5]}
27... Ke8 {[%clk 0:00:06.2]} 28. Qg8# {[%clk 0:02:06.2]} 1-0

[Event "Late-Titled-Tuesday-Blitz-January-30-2024"]
[Site "Chess.com"]
[Date "2024.01.30"]
[Round "8"]
[White "Alex_Banzea"]
[Black "Onthequiet"]
[Result "1-0"]
[WhiteElo "2630"]
[BlackElo "2452"]
[TimeControl "180+1"]
[EndTime "15:25:27 PST"]
[Termination "Alex_Banzea won by resignation"]

1. d4 {[%clk 0:03:00.9]} 1... d5 {[%clk 0:02:57.2]} 2. Nc3 {[%clk 0:03:01.5]}
2... Nf6 {[%clk 0:02:57.6]} 3. Bf4 {[%clk 0:03:02.2]} 3... c6 {[%clk 0:02:58]}
4. e3 {[%clk 0:03:02.9]} 4... Bf5 {[%clk 0:02:56.9]} 5. f3 {[%clk 0:03:03.7]}
5... h6 {[%clk 0:02:56.5]} 6. g4 {[%clk 0:03:03.9]} 6... Bh7 {[%clk 0:02:56.5]}
7. Bd3 {[%clk 0:03:04.8]} 7... Bxd3 {[%clk 0:02:55.9]} 8. Qxd3 {[%clk
0:03:05.7]} 8... Nbd7 {[%clk 0:02:56.3]} 9. Nge2 {[%clk 0:03:06.5]} 9... e6
{[%clk 0:02:55.9]} 10. e4 {[%clk 0:03:07.2]} 10... b5 {[%clk 0:02:54.7]} 11. e5
{[%clk 0:03:05]} 11... Ng8 {[%clk 0:02:53.6]} 12. Nd1 {[%clk 0:02:54.4]} 12...
Nb6 {[%clk 0:02:52.6]} 13. b3 {[%clk 0:02:53.6]} 13... Qd7 {[%clk 0:02:50.1]}
14. h4 {[%clk 0:02:46.9]} 14... c5 {[%clk 0:02:47.5]} 15. c3 {[%clk 0:02:47.5]}
15... c4 {[%clk 0:02:47.3]} 16. Qd2 {[%clk 0:02:46.2]} 16... a5 {[%clk
0:02:46.6]} 17. Ne3 {[%clk 0:02:43.1]} 17... b4 {[%clk 0:02:45.4]} 18. Kf2
{[%clk 0:02:39.5]} 18... Rc8 {[%clk 0:02:39.9]} 19. Rac1 {[%clk 0:02:31.6]}
19... bxc3 {[%clk 0:02:35.8]} 20. Nxc3 {[%clk 0:02:24.2]} 20... Bb4 {[%clk
0:02:36]} 21. bxc4 {[%clk 0:02:11.8]} 21... Nxc4 {[%clk 0:02:34.4]} 22. Nxc4
{[%clk 0:02:12.4]} 22... Rxc4 {[%clk 0:02:35.1]} 23. Qd3 {[%clk 0:02:12]} 23...
Ne7 {[%clk 0:02:29.1]} 24. Ne2 {[%clk 0:02:09.8]} 24... Qc6 {[%clk 0:02:25.2]}
25. h5 {[%clk 0:02:06.5]} 25... O-O {[%clk 0:02:07.1]} 26. a3 {[%clk 0:02:06.9]}
26... f5 {[%clk 0:01:49.5]} 27. g5 {[%clk 0:01:58.2]} 27... Bc5 {[%clk
0:01:29.3]} 28. dxc5 {[%clk 0:01:54.8]} 28... Qxc5+ {[%clk 0:01:30.2]} 29. Be3
{[%clk 0:01:55]} 29... Qc6 {[%clk 0:01:29.3]} 30. Nd4 {[%clk 0:01:51.5]} 30...
Qa6 {[%clk 0:01:26.9]} 31. gxh6 {[%clk 0:01:46]} 31... f4 {[%clk 0:01:27]} 32.
Bd2 {[%clk 0:01:41.1]} 32... Qb6 {[%clk 0:01:19.1]} 33. Rxc4 {[%clk 0:01:36.5]}
33... dxc4 {[%clk 0:01:20]} 34. Qxc4 {[%clk 0:01:36.9]} 34... Nd5 {[%clk
0:01:18.4]} 35. Rg1 {[%clk 0:01:34.2]} 35... Rf7 {[%clk 0:01:17.8]} 36. hxg7
{[%clk 0:01:16.6]} 36... Rxg7 {[%clk 0:01:18.7]} 37. Qc8+ {[%clk 0:01:16.2]}
37... Kh7 {[%clk 0:01:18.1]} 38. Rxg7+ {[%clk 0:01:16]} 1-0

[Event "Late-Titled-Tuesday-Blitz-January-30-2024"]
[Site "Chess.com"]
[Date "2024.01.30"]
[Round "8"]
[White "SnekkerAndersen"]
[Black "pavet"]
[Result "0-1"]
[WhiteElo "2637"]
[BlackElo "2776"]
[TimeControl "180+1"]
[EndTime "15:25:44 PST"]
[Termination "pavet won by resignation"]

1. d4 {[%clk 0:03:00.9]} 1... Nf6 {[%clk 0:02:59.2]} 2. c4 {[%clk 0:03:00.4]}
2... g6 {[%clk 0:02:59.3]} 3. Nc3 {[%clk 0:02:59.4]} 3... d5 {[%clk 0:02:59.9]}
4. Nf3 {[%clk 0:02:57.9]} 4... Bg7 {[%clk 0:02:59.6]} 5. Qb3 {[%clk 0:02:58.4]}
5... dxc4 {[%clk 0:02:59.6]} 6. Qxc4 {[%clk 0:02:58.4]} 6... O-O {[%clk
0:03:00.3]} 7. e4 {[%clk 0:02:57.3]} 7... Na6 {[%clk 0:02:59.4]} 8. Be2 {[%clk
0:02:46.1]} 8... c5 {[%clk 0:02:56.6]} 9. d5 {[%clk 0:02:44.1]} 9... e6 {[%clk
0:02:57.1]} 10. O-O {[%clk 0:02:40.7]} 10... exd5 {[%clk 0:02:57.5]} 11. exd5
{[%clk 0:02:40.7]} 11... Bf5 {[%clk 0:02:57.6]} 12. Bf4 {[%clk 0:02:33.1]} 12...
Re8 {[%clk 0:02:56.3]} 13. Rad1 {[%clk 0:02:24.4]} 13... Ne4 {[%clk 0:02:54.6]}
14. Bd3 {[%clk 0:02:07.7]} 14... Nxc3 {[%clk 0:02:29.9]} 15. bxc3 {[%clk
0:02:06.2]} 15... Bg4 {[%clk 0:02:29.8]} 16. Bc2 {[%clk 0:01:41.1]} 16... Bxf3
{[%clk 0:02:28.7]} 17. gxf3 {[%clk 0:01:41.1]} 17... Qh4 {[%clk 0:02:27]} 18.
Bb3 {[%clk 0:00:53.6]} 18... b5 {[%clk 0:02:01.6]} 19. Qxb5 {[%clk 0:00:52.6]}
19... Qxf4 {[%clk 0:02:01]} 20. Rfe1 {[%clk 0:00:53]} 20... Nc7 {[%clk
0:01:53.2]} 21. Qd7 {[%clk 0:00:50.5]} 21... Be5 {[%clk 0:01:47.4]} 22. Re4
{[%clk 0:00:47.3]} 22... Qxh2+ {[%clk 0:01:46.8]} 23. Kf1 {[%clk 0:00:47.8]}
23... Bd6 {[%clk 0:01:39.8]} 24. Ba4 {[%clk 0:00:42.5]} 24... Qh1+ {[%clk
0:01:29.7]} 25. Ke2 {[%clk 0:00:42.5]} 25... Rxe4+ {[%clk 0:01:30.2]} 26. fxe4
{[%clk 0:00:43.4]} 26... Qxe4+ {[%clk 0:01:29.7]} 27. Kf1 {[%clk 0:00:43.8]}
27... Re8 {[%clk 0:01:07]} 28. Qh3 {[%clk 0:00:43.1]} 28... Qxa4 {[%clk
0:01:05.2]} 0-1

[Event "Late-Titled-Tuesday-Blitz-January-30-2024"]
[Site "Chess.com"]
[Date "2024.01.30"]
[Round "8"]
[White "Szparu"]
[Black "BilodeauA"]
[Result "0-1"]
[WhiteElo "2790"]
[BlackElo "3023"]
[TimeControl "180+1"]
[EndTime "15:25:47 PST"]
[Termination "BilodeauA won by resignation"]

1. e4 {[%clk 0:03:00.9]} 1... c5 {[%clk 0:03:00.4]} 2. Nf3 {[%clk 0:02:58.1]}
2... Nc6 {[%clk 0:03:00.9]} 3. Bb5 {[%clk 0:02:57.6]} 3... g6 {[%clk 0:03:01]}
4. c3 {[%clk 0:02:57.3]} 4... Bg7 {[%clk 0:02:59.2]} 5. d4 {[%clk 0:02:57.2]}
5... cxd4 {[%clk 0:02:49.8]} 6. cxd4 {[%clk 0:02:57.4]} 6... a6 {[%clk
0:02:50.6]} 7. Bxc6 {[%clk 0:02:55.8]} 7... dxc6 {[%clk 0:02:51.3]} 8. h3 {[%clk
0:02:55.6]} 8... Nf6 {[%clk 0:02:51.6]} 9. Nc3 {[%clk 0:02:55.7]} 9... O-O
{[%clk 0:02:52.3]} 10. O-O {[%clk 0:02:55.7]} 10... b5 {[%clk 0:02:53]} 11. Qc2
{[%clk 0:02:51.5]} 11... Nd7 {[%clk 0:02:47.3]} 12. Rd1 {[%clk 0:02:50.5]} 12...
Bb7 {[%clk 0:02:39.1]} 13. Bg5 {[%clk 0:02:50.4]} 13... h6 {[%clk 0:02:37.1]}
14. Bf4 {[%clk 0:02:50.9]} 14... Rc8 {[%clk 0:02:33.7]} 15. Qd2 {[%clk
0:02:48.9]} 15... Kh7 {[%clk 0:02:33.8]} 16. Qe2 {[%clk 0:02:31.8]} 16... Nb6
{[%clk 0:02:29.3]} 17. Be5 {[%clk 0:02:30.5]} 17... f6 {[%clk 0:02:29.3]} 18.
Bh2 {[%clk 0:02:30.7]} 18... e6 {[%clk 0:02:26.8]} 19. Rac1 {[%clk 0:02:29.1]}
19... Qe7 {[%clk 0:02:25.3]} 20. Qf1 {[%clk 0:02:04.2]} 20... Rfd8 {[%clk
0:02:24.8]} 21. Re1 {[%clk 0:01:46]} 21... c5 {[%clk 0:02:22.9]} 22. d5 {[%clk
0:01:42.3]} 22... e5 {[%clk 0:02:23.4]} 23. Nd1 {[%clk 0:01:38.2]} 23... Nc4
{[%clk 0:02:21.5]} 24. h4 {[%clk 0:01:27.9]} 24... h5 {[%clk 0:02:12.5]} 25.
Rxc4 {[%clk 0:01:27.1]} 25... bxc4 {[%clk 0:02:12.8]} 26. Qxc4 {[%clk
0:01:26.6]} 26... Rb8 {[%clk 0:02:01]} 27. Nc3 {[%clk 0:01:25.3]} 27... Bc8
{[%clk 0:02:00.7]} 28. b3 {[%clk 0:01:21.2]} 28... Rb4 {[%clk 0:02:00.5]} 29.
Qe2 {[%clk 0:01:21.4]} 29... Bg4 {[%clk 0:01:54.5]} 30. Qd3 {[%clk 0:01:12.2]}
30... Bh6 {[%clk 0:01:48.2]} 31. Qxa6 {[%clk 0:01:07.1]} 31... Bxf3 {[%clk
0:01:46.2]} 32. gxf3 {[%clk 0:01:07]} 32... Bd2 {[%clk 0:01:45.6]} 33. Re3
{[%clk 0:01:00.1]} 33... Bxe3 {[%clk 0:01:45.7]} 34. fxe3 {[%clk 0:01:01]} 34...
c4 {[%clk 0:01:46.4]} 35. bxc4 {[%clk 0:00:34.8]} 35... Qc5 {[%clk 0:01:33.5]}
36. Qe6 {[%clk 0:00:34.5]} 36... Qxe3+ {[%clk 0:01:25.5]} 0-1

[Event "Late-Titled-Tuesday-Blitz-January-30-2024"]
[Site "Chess.com"]
[Date "2024.01.30"]
[Round "8"]
[White "Anar_Aliakbarov"]
[Black "Vasily85"]
[Result "1-0"]
[WhiteElo "2652"]
[BlackElo "2486"]
[TimeControl "180+1"]
[EndTime "15:26:13 PST"]
[Termination "Anar_Aliakbarov won by resignation"]

1. d4 {[%clk 0:03:00]} 1... Nf6 {[%clk 0:03:00.3]} 2. c4 {[%clk 0:02:59.9]} 2...
e6 {[%clk 0:02:59.9]} 3. Nc3 {[%clk 0:02:58.7]} 3... Bb4 {[%clk 0:03:00.5]} 4.
a3 {[%clk 0:02:59.3]} 4... Bxc3+ {[%clk 0:03:00.4]} 5. bxc3 {[%clk 0:03:00.2]}
5... O-O {[%clk 0:02:59.6]} 6. f3 {[%clk 0:03:00.6]} 6... d5 {[%clk 0:02:36.6]}
7. cxd5 {[%clk 0:03:01.5]} 7... exd5 {[%clk 0:02:37.3]} 8. Bg5 {[%clk
0:02:56.5]} 8... h6 {[%clk 0:02:35.8]} 9. Bh4 {[%clk 0:02:55.7]} 9... c5 {[%clk
0:02:34.9]} 10. e3 {[%clk 0:02:53.7]} 10... Bf5 {[%clk 0:02:28.3]} 11. Bd3
{[%clk 0:02:51]} 11... Bxd3 {[%clk 0:02:19.7]} 12. Qxd3 {[%clk 0:02:51.9]} 12...
Nbd7 {[%clk 0:02:18.7]} 13. Ne2 {[%clk 0:02:51.6]} 13... Re8 {[%clk 0:02:07]}
14. O-O {[%clk 0:02:49.6]} 14... Qc7 {[%clk 0:02:03.9]} 15. Bg3 {[%clk
0:02:43.8]} 15... Qc6 {[%clk 0:02:04]} 16. Bf2 {[%clk 0:02:41.6]} 16... Rac8
{[%clk 0:01:59.6]} 17. Rfc1 {[%clk 0:02:26]} 17... Qa4 {[%clk 0:01:52.5]} 18. g4
{[%clk 0:02:18.5]} 18... Re6 {[%clk 0:01:42.4]} 19. h4 {[%clk 0:02:13.7]} 19...
Rec6 {[%clk 0:01:33.4]} 20. g5 {[%clk 0:02:06.7]} 20... hxg5 {[%clk 0:01:34.3]}
21. hxg5 {[%clk 0:02:07.1]} 21... Nh7 {[%clk 0:01:35]} 22. f4 {[%clk 0:02:04.5]}
22... Nhf8 {[%clk 0:01:18.2]} 23. Kg2 {[%clk 0:02:01]} 23... g6 {[%clk 0:01:11]}
24. Rh1 {[%clk 0:01:54.6]} 24... cxd4 {[%clk 0:01:11]} 25. exd4 {[%clk
0:01:35.8]} 25... Qc4 {[%clk 0:01:01.6]} 26. Qh3 {[%clk 0:01:32.3]} 26... Nh7
{[%clk 0:00:49.4]} 27. Qxh7+ {[%clk 0:01:19.6]} 27... Kf8 {[%clk 0:00:49.6]} 28.
Rae1 {[%clk 0:01:14.1]} 28... Re6 {[%clk 0:00:47.6]} 29. Ng3 {[%clk 0:01:07]}
29... Rcc6 {[%clk 0:00:37.6]} 30. f5 {[%clk 0:00:58]} 1-0

[Event "Late-Titled-Tuesday-Blitz-January-30-2024"]
[Site "Chess.com"]
[Date "2024.01.30"]
[Round "8"]
[White "AlexeiShirov"]
[Black "Beca95"]
[Result "0-1"]
[WhiteElo "2772"]
[BlackElo "2970"]
[TimeControl "180+1"]
[EndTime "15:26:15 PST"]
[Termination "Beca95 won by resignation"]

1. e4 {[%clk 0:03:00.9]} 1... e5 {[%clk 0:02:59.8]} 2. Nf3 {[%clk 0:03:00.9]}
2... Nc6 {[%clk 0:03:00.1]} 3. Bb5 {[%clk 0:03:00.3]} 3... Bc5 {[%clk
0:03:00.1]} 4. O-O {[%clk 0:02:56.7]} 4... d6 {[%clk 0:02:59.3]} 5. d4 {[%clk
0:02:53.5]} 5... exd4 {[%clk 0:02:58.8]} 6. Nxd4 {[%clk 0:02:53.3]} 6... Ne7
{[%clk 0:02:57.4]} 7. Nc3 {[%clk 0:02:46.6]} 7... O-O {[%clk 0:02:55.9]} 8. Nxc6
{[%clk 0:02:44.7]} 8... bxc6 {[%clk 0:02:54.6]} 9. Bd3 {[%clk 0:02:44.1]} 9...
a5 {[%clk 0:02:49]} 10. Kh1 {[%clk 0:02:40.9]} 10... f5 {[%clk 0:02:44.3]} 11.
f4 {[%clk 0:02:37.9]} 11... d5 {[%clk 0:02:41.3]} 12. e5 {[%clk 0:02:21.7]}
12... Ba7 {[%clk 0:02:40.5]} 13. Ne2 {[%clk 0:02:19.2]} 13... Be6 {[%clk
0:02:40]} 14. c3 {[%clk 0:02:14.7]} 14... c5 {[%clk 0:02:38.8]} 15. Ng1 {[%clk
0:01:55.4]} 15... c4 {[%clk 0:02:31]} 16. Be2 {[%clk 0:01:51.8]} 16... c5 {[%clk
0:02:30.8]} 17. Nf3 {[%clk 0:01:50.3]} 17... d4 {[%clk 0:02:31]} 18. Ng5 {[%clk
0:01:48.8]} 18... Bd5 {[%clk 0:02:31.3]} 19. Bf3 {[%clk 0:01:37.5]} 19... h6
{[%clk 0:02:31]} 20. Nh3 {[%clk 0:01:27.1]} 20... Bb6 {[%clk 0:02:27]} 21. Qa4
{[%clk 0:01:22.6]} 21... Kh8 {[%clk 0:02:23.9]} 22. Bd2 {[%clk 0:01:20.6]} 22...
Rb8 {[%clk 0:02:23.3]} 23. Rae1 {[%clk 0:01:16.5]} 23... Bc7 {[%clk 0:02:20.2]}
24. Bc1 {[%clk 0:01:12.3]} 24... Bxf3 {[%clk 0:02:18.5]} 25. Rxf3 {[%clk
0:01:11.6]} 25... Qd5 {[%clk 0:02:19.1]} 26. b3 {[%clk 0:00:47.3]} 26... cxb3
{[%clk 0:02:18.6]} 27. c4 {[%clk 0:00:46.1]} 27... Qe6 {[%clk 0:01:50]} 28. axb3
{[%clk 0:00:45.8]} 28... Rb4 {[%clk 0:01:49.5]} 29. Qa2 {[%clk 0:00:45.2]} 29...
a4 {[%clk 0:01:49.9]} 30. bxa4 {[%clk 0:00:43.9]} 30... Ra8 {[%clk 0:01:48]} 31.
Bd2 {[%clk 0:00:40.9]} 31... Rbxa4 {[%clk 0:01:47.5]} 32. Qb1 {[%clk 0:00:39.6]}
32... Qxc4 {[%clk 0:01:44.6]} 33. Qb7 {[%clk 0:00:38.1]} 33... R4a7 {[%clk
0:01:43.9]} 34. Qb1 {[%clk 0:00:37.7]} 34... Qd5 {[%clk 0:01:36.7]} 35. Rd1
{[%clk 0:00:28.7]} 35... Rb7 {[%clk 0:01:31]} 36. Qc2 {[%clk 0:00:27.1]} 36...
Ra2 {[%clk 0:01:31]} 37. Qc1 {[%clk 0:00:26.8]} 37... Rbb2 {[%clk 0:01:29.8]}
0-1